bitfinex/quotes_BTCUSD_20241023
["timestamp","ask_amount","ask_price","bid_price","bid_amount"]
[1729694025911,0.000824,66732.0,66731.0,0.62959431]
[1729694026422,0.000824,66732.0,66731.0,0.62759431]
[1729694026651,0.000824,66732.0,66731.0,0.77744931]
[1729694027319,0.000824,66732.0,66731.0,0.77944931]
[1729694028028,0.000824,66732.0,66731.0,0.77744931]
[1729694029817,0.000824,66732.0,66731.0,0.77944931]
[1729694030029,0.000824,66732.0,66731.0,0.78332402]
[1729694031158,0.0777,66750.0,66743.0,0.005]
[1729694031377,0.22547745,66744.0,66743.0,0.03277009]
[1729694031606,0.100823,66753.0,66744.0,0.02777009]
[1729694032253,0.100823,66753.0,66745.0,0.15050381]
[1729694032479,0.100823,66753.0,66752.0,0.29562041]
[1729694032690,0.100823,66753.0,66752.0,0.44612422]
[1729694033995,0.100823,66753.0,66752.0,0.59593222]
[1729694036203,0.100823,66753.0,66752.0,0.6017983]
[1729694037101,0.100823,66753.0,66752.0,0.6067983]
[1729694037336,0.100823,66753.0,66752.0,0.6087983]
[1729694037561,0.100823,66753.0,66752.0,0.6067983]
[1729694038435,0.100823,66753.0,66752.0,0.43417789]
[1729694038667,0.100823,66753.0,66752.0,0.6067983]
[1729694039128,0.07068015,66753.0,66752.0,0.7861888]
[1729694039341,0.07068015,66753.0,66752.0,0.61156839]
[1729694040451,0.07068015,66753.0,66752.0,0.61356839]
[1729694042047,0.07150415,66753.0,66752.0,0.61356839]
[1729694042249,0.07150415,66753.0,66752.0,0.61156839]
[1729694042855,0.07150415,66753.0,66752.0,0.73156839]
[1729694045011,0.07150415,66753.0,66752.0,0.7861888]
[1729694045203,0.07150415,66753.0,66752.0,0.61356839]
[1729694045384,0.07150415,66753.0,66752.0,0.61156839]
[1729694046045,0.07150415,66753.0,66752.0,1.00966625]
[1729694046247,0.07150415,66753.0,66752.0,0.7861888]
[1729694046393,0.0246853,66753.0,66752.0,0.7841888]
[1729694046599,0.0246853,66753.0,66752.0,0.9061888]
[1729694046972,0.0246853,66753.0,66752.0,0.9041888]
[1729694047631,0.001698,66760.0,66759.0,0.03477009]
[1729694047857,0.001698,66760.0,66759.0,0.62851472]
[1729694048080,0.001698,66760.0,66759.0,0.77830672]
[1729694049971,0.001698,66767.0,66766.0,0.01177009]
[1729694050196,0.001698,66767.0,66766.0,0.60866515]
[1729694050429,0.001698,66767.0,66766.0,0.60767031]
[1729694051130,0.001698,66767.0,66766.0,0.70277031]
[1729694051357,0.001698,66767.0,66766.0,0.70077031]
[1729694052288,0.001698,66767.0,66766.0,0.70277031]
[1729694053236,0.001698,66771.0,66770.0,0.62977791]
[1729694053457,0.001698,66771.0,66770.0,0.77828172]
[1729694053686,0.001698,66771.0,66770.0,0.60566131]
[1729694054140,0.001698,66771.0,66770.0,0.77828172]
[1729694054376,0.001698,66771.0,66770.0,0.78028172]
[1729694054597,0.001698,66777.0,66776.0,0.25952409]
[1729694054827,0.001698,66777.0,66776.0,0.77826872]
[1729694055071,0.00860497,66777.0,66776.0,0.77826872]
[1729694055305,0.001698,66777.0,66776.0,0.77826872]
[1729694055548,0.001698,66777.0,66776.0,0.85906872]
[1729694056011,0.001698,66777.0,66776.0,0.86106872]
[1729694056233,0.001698,66777.0,66776.0,0.85906872]
[1729694057120,0.001698,66777.0,66776.0,0.86106872]
[1729694057833,0.0125,66789.0,66788.0,0.272727]
[1729694058071,0.0125,66789.0,66788.0,0.42622499]
[1729694058343,0.01938974,66789.0,66788.0,0.42323081]
[1729694058570,0.0125,66789.0,66788.0,0.42323081]
[1729694060799,0.0125,66789.0,66788.0,0.4290592]
[1729694061484,0.0125,66789.0,66788.0,0.4340592]
[1729694064775,0.0125,66789.0,66788.0,0.4060592]
[1729694065415,0.0894,66789.0,66788.0,0.4060592]
[1729694066086,0.0894,66789.0,66788.0,0.4290592]
[1729694067410,0.0125,66789.0,66788.0,0.4290592]
[1729694067623,0.013323,66789.0,66788.0,0.4290592]
[1729694070119,0.013323,66789.0,66788.0,0.60167961]
[1729694070345,0.013323,66789.0,66788.0,0.53922925]
[1729694070561,0.013323,66789.0,66788.0,0.6543993]
[1729694070778,0.013323,66789.0,66788.0,0.54422925]
[1729694071240,0.013323,66789.0,66788.0,0.53922925]
[1729694092248,0.000823,66789.0,66788.0,0.53922925]
[1729694100015,0.000823,66789.0,66788.0,0.6493993]
[1729694100246,0.000823,66789.0,66788.0,0.53922925]
[1729694100697,0.000823,66789.0,66788.0,0.6543993]
[1729694100936,0.001696,66796.0,66794.0,0.00977009]
[1729694101162,0.001696,66796.0,66795.0,0.70121807]
[1729694101388,0.001696,66796.0,66795.0,0.79050864]
[1729694101619,0.001696,66796.0,66795.0,0.83738487]
[1729694101839,0.001696,66796.0,66795.0,0.85987367]
[1729694102092,0.001696,66796.0,66795.0,0.747625]
[1729694102329,0.0803,66811.0,66805.0,0.304375]
[1729694102549,0.0803,66811.0,66801.0,0.30416309]
[1729694102550,0.0125,66818.0,66817.0,0.149662]
[1729694102768,0.01272991,66818.0,66817.0,0.28283205]
[1729694102986,0.01272991,66818.0,66817.0,0.38283205]
[1729694103282,0.0125,66818.0,66817.0,0.38283205]
[1729694104156,0.013323,66818.0,66817.0,0.38283205]
[1729694104810,0.013323,66818.0,66817.0,0.53333586]
[1729694106205,0.013323,66818.0,66817.0,0.64926207]
[1729694106917,0.013323,66818.0,66817.0,0.65426207]
[1729694108297,0.013323,66818.0,66817.0,0.53909202]
[1729694108964,0.013323,66818.0,66817.0,0.54409202]
[1729694109923,0.013323,66818.0,66817.0,0.65626207]
[1729694110147,0.013323,66818.0,66817.0,0.65426207]
[1729694110376,0.013323,66818.0,66817.0,0.65903216]
[1729694110603,0.013323,66818.0,66817.0,0.66103216]
[1729694111496,0.013323,66818.0,66817.0,0.65903216]
[1729694111967,0.013323,66818.0,66817.0,0.66103216]
[1729694112414,0.013323,66818.0,66817.0,0.65903216]
[1729694112630,0.013323,66818.0,66817.0,0.77903216]
[1729694112863,0.001696,66820.0,66819.0,0.26142809]
[1729694113088,0.001696,66820.0,66819.0,0.43792421]
[1729694113308,0.001696,66820.0,66819.0,0.4329319]
[1729694117144,0.001696,66820.0,66819.0,0.4349319]
[1729694117549,0.001696,66820.0,66819.0,0.54310195]
[1729694117984,0.001696,66820.0,66819.0,0.4329319]
[1729694118488,0.001696,66820.0,66819.0,0.653272]
[1729694118918,0.001696,66820.0,66819.0,0.655272]
[1729694119138,0.001696,66820.0,66819.0,0.76544205]
[1729694119572,0.001696,66820.0,66819.0,0.76344205]
[1729694119825,1e-06,66820.0,66819.0,0.76544205]
[1729694120253,1e-06,66820.0,66819.0,0.76344205]
[1729694120472,0.017635,66830.0,66826.0,0.154642]
[1729694120689,0.017635,66830.0,66826.0,0.653256]
[1729694120901,0.00924988,66827.0,66826.0,0.653256]
[1729694121129,0.001696,66827.0,66826.0,0.653256]
[1729694122585,0.1,66836.0,66835.0,0.28239209]
[1729694122801,0.1,66836.0,66835.0,0.653236]
[1729694124624,0.1,66836.0,66835.0,0.4328959]
[1729694124878,0.1,66836.0,66835.0,0.54306595]
[1729694125098,0.1,66836.0,66835.0,0.4328959]
[1729694125312,0.1,66836.0,66835.0,0.54306595]
[1729694125758,0.1,66836.0,66835.0,0.54884979]
[1729694126279,0.1,66836.0,66835.0,0.43867974]
[1729694126498,0.1,66836.0,66835.0,0.60558518]
[1729694126937,0.1,66836.0,66835.0,0.61058518]
[1729694128306,0.1,66836.0,66835.0,0.43367974]
[1729694128527,0.1781,66836.0,66835.0,0.60558518]
[1729694129171,0.1,66836.0,66835.0,0.77749062]
[1729694129393,0.1,66836.0,66835.0,0.61058518]
[1729694129603,0.100824,66836.0,66835.0,0.61058518]
[1729694131437,0.100824,66836.0,66835.0,0.78449062]
[1729694131886,0.100824,66836.0,66835.0,0.78249062]
[1729694132097,0.100824,66836.0,66835.0,0.61058518]
[1729694132828,0.07059652,66836.0,66835.0,0.78249062]
[1729694133031,0.05324452,66846.0,66845.0,0.149599]
[1729694133253,0.05324452,66846.0,66845.0,0.42310281]
[1729694133466,0.06647897,66846.0,66845.0,0.42310281]
[1729694133678,0.05324452,66846.0,66845.0,0.42310281]
[1729694136728,0.05324452,66846.0,66845.0,0.42898099]
[1729694136937,0.14494452,66846.0,66845.0,0.42898099]
[1729694137145,0.14494452,66846.0,66845.0,0.40598099]
[1729694140293,0.14494452,66846.0,66845.0,0.25547718]
[1729694140504,0.15017443,66846.0,66845.0,0.15547718]
[1729694142450,0.15099843,66846.0,66845.0,0.15547718]
[1729694144313,0.17,66841.0,66837.0,0.023]
[1729694144519,0.17,66841.0,66825.0,0.00477009]
[1729694144520,0.19161054,66840.0,66839.0,0.1]
[1729694144740,0.17522991,66836.0,66835.0,0.448865]
[1729694144964,0.01638063,66840.0,66834.0,0.149624]
[1729694144965,0.00522991,66835.0,66834.0,0.149624]
[1729694145188,0.17522991,66835.0,66834.0,0.149624]
[1729694146264,0.18132991,66834.0,66833.0,0.149626]
[1729694146932,0.00300409,66838.0,66832.0,0.00586053]
[1729694146933,0.18132991,66833.0,66832.0,0.00586053]
[1729694147175,0.1761,66832.0,66831.0,0.149631]
[1729694147408,0.18132991,66832.0,66831.0,0.149631]
[1729694147623,0.19461899,66832.0,66831.0,0.149631]
[1729694148267,0.18132991,66832.0,66831.0,0.149631]
[1729694148799,0.0819,66831.0,66828.0,0.299275]
[1729694149037,0.08712991,66829.0,66828.0,0.1]
[1729694149238,0.00522991,66825.0,66818.0,0.001648]
[1729694149450,0.18082991,66822.0,66821.0,0.1]
[1729694149673,0.09792991,66820.0,66818.0,0.001648]
[1729694149890,0.091134,66819.0,66818.0,0.001648]
[1729694150551,0.181334,66819.0,66818.0,0.001648]
[1729694151217,0.18152749,66819.0,66818.0,0.001648]
[1729694151652,0.18152749,66819.0,66818.0,0.251308]
[1729694151867,0.1785234,66819.0,66818.0,0.251308]
[1729694152308,0.17860669,66819.0,66818.0,0.001648]
[1729694152544,0.40200519,66819.0,66818.0,0.001648]
[1729694152765,0.39892864,66819.0,66818.0,0.001648]
[1729694152992,0.2280944,66819.0,66818.0,0.001648]
[1729694153204,0.23121658,66819.0,66818.0,0.001648]
[1729694153421,0.33615549,66819.0,66818.0,0.001648]
[1729694153648,0.3331514,66819.0,66818.0,0.001648]
[1729694154510,0.1834934,66819.0,66818.0,0.001648]
[1729694154712,0.33615549,66819.0,66818.0,0.001648]
[1729694154993,0.1834934,66819.0,66818.0,0.001648]
[1729694155186,0.4966593,66819.0,66818.0,0.001648]
[1729694155419,0.49565521,66819.0,66818.0,0.001648]
[1729694155617,0.00522991,66806.0,66805.0,0.22547745]
[1729694155840,0.00522991,66806.0,66805.0,0.37516545]
[1729694156285,0.00522991,66806.0,66805.0,0.149688]
[1729694156490,0.00522991,66806.0,66805.0,0.249688]
[1729694158019,0.00522991,66806.0,66805.0,0.69956981]
[1729694158831,0.00522991,66806.0,66805.0,0.54988081]
[1729694159039,0.00522991,66806.0,66805.0,0.69956981]
[1729694159882,0.0828,66812.0,66805.0,0.69956981]
[1729694159883,0.00522991,66810.0,66806.0,0.1]
[1729694160094,0.00522991,66813.0,66812.0,0.1]
[1729694160310,0.00522991,66813.0,66812.0,0.249673]
[1729694160528,0.01309591,66813.0,66812.0,0.42317681]
[1729694160745,0.095,66820.0,66812.0,0.42317681]
[1729694160746,0.00022991,66820.0,66819.0,0.249658]
[1729694161283,0.00522991,66820.0,66819.0,0.249658]
[1729694162716,0.00522991,66820.0,66819.0,0.25540275]
[1729694163192,0.00522991,66820.0,66819.0,0.249658]
[1729694164436,0.00747454,66820.0,66819.0,0.249658]
[1729694165210,0.00522991,66820.0,66819.0,0.251304]
[1729694167464,0.00522991,66820.0,66819.0,0.001646]
[1729694167725,0.103634,66820.0,66819.0,0.001646]
[1729694167954,0.38247781,66820.0,66819.0,0.001646]
[1729694168203,0.38947372,66820.0,66819.0,0.001646]
[1729694168442,0.71388297,66820.0,66819.0,0.001646]
[1729694168952,0.71388297,66820.0,66805.0,0.22547745]
[1729694168953,0.33057608,66806.0,66805.0,0.22547745]
[1729694169197,0.18313425,66806.0,66805.0,0.22547745]
[1729694169415,0.18313425,66806.0,66798.0,0.22547745]
[1729694169635,0.00522991,66801.0,66798.0,0.22547745]
[1729694169877,0.00522991,66801.0,66800.0,2.4497]
[1729694172085,0.15492791,66801.0,66800.0,2.2993736]
[1729694172374,0.01018908,66801.0,66800.0,2.2993736]
[1729694172620,0.02332053,66801.0,66800.0,2.2993736]
[1729694172858,0.17301853,66801.0,66800.0,2.2993736]
[1729694173608,0.02332053,66801.0,66800.0,2.2993736]
[1729694173851,0.17301853,66801.0,66800.0,2.2993736]
[1729694174357,0.25432262,66801.0,66800.0,2.2993736]
[1729694174840,0.42622806,66801.0,66800.0,2.2993736]
[1729694175114,0.85093322,66801.0,66800.0,2.2993736]
[1729694175652,0.85093322,66801.0,66800.0,2.2212736]
[1729694175905,0.85093322,66801.0,66800.0,2.0431736]
[1729694176137,0.85093322,66801.0,66800.0,1.9431736]
[1729694176416,0.84622806,66801.0,66800.0,1.6107736]
[1729694176683,0.84618693,66801.0,66800.0,1.5890736]
[1729694176942,0.89069765,66801.0,66800.0,1.5890736]
[1729694177179,0.84618693,66801.0,66800.0,1.5907216]
[1729694177416,0.89067826,66801.0,66800.0,1.5907216]
[1729694177619,0.89068164,66801.0,66800.0,1.5907216]
[1729694180056,0.50237605,66801.0,66800.0,1.5907216]
[1729694180326,0.67428149,66801.0,66800.0,1.5907216]
[1729694180551,0.50538665,66801.0,66800.0,1.5907216]
[1729694180789,0.50738665,66801.0,66800.0,1.5907216]
[1729694182522,0.33348121,66801.0,66800.0,1.5907216]
[1729694183136,0.0332794,66801.0,66800.0,1.5907216]
[1729694183346,0.18598149,66801.0,66800.0,1.5907216]
[1729694183803,0.26468136,66801.0,66800.0,1.5907216]
[1729694184363,0.03628349,66801.0,66800.0,1.5907216]
[1729694184823,0.18301974,66801.0,66800.0,1.5907216]
[1729694185045,0.18597215,66801.0,66800.0,1.5807216]
[1729694185753,0.03627415,66801.0,66800.0,1.5807216]
[1729694185973,0.02627415,66801.0,66800.0,1.5807216]
[1729694186219,0.00522991,66801.0,66800.0,1.7304216]
[1729694186426,0.00522991,66801.0,66800.0,1.5807216]
[1729694186913,0.15717335,66801.0,66800.0,1.5807216]
[1729694187127,0.23952278,66801.0,66800.0,1.5807216]
[1729694187343,0.25234662,66801.0,66800.0,1.5807216]
[1729694187558,0.17495636,66801.0,66800.0,1.5807216]
[1729694188104,0.3468618,66801.0,66800.0,1.5807216]
[1729694188326,0.35901479,66801.0,66800.0,1.5807216]
[1729694189068,0.35783879,66801.0,66800.0,1.5807216]
[1729694189284,0.45815162,66801.0,66800.0,1.5807216]
[1729694189702,0.60865543,66801.0,66800.0,1.5807216]
[1729694189947,0.61065543,66801.0,66800.0,1.5807216]
[1729694190314,0.45848208,66801.0,66800.0,1.5807216]
[1729694190526,0.60818008,66801.0,66800.0,1.5807216]
[1729694190674,0.65269358,66801.0,66800.0,1.5807216]
[1729694190885,0.60813841,66801.0,66800.0,1.5807216]
[1729694191319,0.94456859,66801.0,66800.0,1.5807216]
[1729694191552,0.60813841,66801.0,66800.0,1.5807216]
[1729694191773,0.67499264,66801.0,66800.0,1.5807216]
[1729694192015,0.77266309,66801.0,66800.0,1.5807216]
[1729694192495,0.77268879,66801.0,66800.0,1.5807216]
[1729694192761,0.8618433,66801.0,66800.0,1.5807216]
[1729694193153,0.86184101,66801.0,66800.0,1.5807216]
[1729694193392,0.77268734,66801.0,66800.0,1.5807216]
[1729694193647,0.94459278,66801.0,66800.0,1.5807216]
[1729694193919,0.77268734,66801.0,66800.0,1.5807216]
[1729694194174,0.94459278,66801.0,66800.0,1.5807216]
[1729694194408,0.78384668,66801.0,66800.0,1.5807216]
[1729694194649,1.06719421,66801.0,66800.0,1.5807216]
[1729694194893,0.89529417,66801.0,66800.0,1.5807216]
[1729694195119,0.78385208,66801.0,66800.0,1.5807216]
[1729694195578,0.89529417,66801.0,66800.0,1.5807216]
[1729694196047,0.78385208,66801.0,66800.0,1.5807216]
[1729694196293,0.95575752,66801.0,66800.0,1.5807216]
[1729694197206,0.95572923,66801.0,66800.0,1.5807216]
[1729694198563,0.95575976,66801.0,66800.0,1.5807216]
[1729694198772,0.95800558,66801.0,66800.0,1.5807216]
[1729694199698,0.98141116,66801.0,66800.0,1.5807216]
[1729694200379,0.97021589,66801.0,66800.0,1.5807216]
[1729694200595,0.981413,66801.0,66800.0,1.5807216]
[1729694201552,1.02799885,66801.0,66800.0,1.5807216]
[1729694202351,1.37361837,66801.0,66800.0,1.06029519]
[1729694202592,1.262113,66801.0,66800.0,1.06029519]
[1729694203081,1.27064202,66801.0,66800.0,1.06029519]
[1729694203529,1.38214293,66801.0,66800.0,1.06029519]
[1729694204455,1.38213809,66801.0,66800.0,1.06029519]
[1729694205174,1.27064202,66801.0,66800.0,1.06029519]
[1729694205892,1.25944491,66801.0,66800.0,1.06029519]
[1729694206107,1.3821493,66801.0,66800.0,1.06029519]
[1729694206743,1.27064834,66801.0,66800.0,1.06029519]
[1729694206976,1.3822297,66801.0,66800.0,1.06029519]
[1729694207222,1.2707323,66801.0,66800.0,1.06029519]
[1729694207473,1.4288868,66801.0,66800.0,1.06029519]
[1729694207706,1.31739167,66801.0,66800.0,1.06029519]
[1729694207956,0.85774578,66801.0,66800.0,1.06029519]
[1729694208204,1.00734328,66801.0,66800.0,1.06029519]
[1729694208449,0.91812686,66801.0,66800.0,1.06029519]
[1729694208927,1.0900323,66801.0,66800.0,1.06029519]
[1729694210569,1.20155666,66801.0,66800.0,1.06029519]
[1729694210817,1.17812379,66801.0,66800.0,1.06029519]
[1729694211520,1.06659943,66801.0,66800.0,1.06029519]
[1729694212192,0.94136758,66801.0,66800.0,1.06029519]
[1729694212666,1.11327302,66801.0,66800.0,1.06029519]
[1729694212669,1.11327302,66801.0,66800.0,0.78189519]
[1729694212890,1.08959943,66801.0,66800.0,0.69533368]
[1729694213121,1.078396,66801.0,66800.0,0.69533368]
[1729694213341,1.08959605,66801.0,66800.0,0.69533368]
[1729694213770,1.24729605,66801.0,66800.0,0.51551113]
[1729694213980,1.24729605,66801.0,66800.0,0.31833768]
[1729694214193,1.2939738,66801.0,66800.0,0.31833768]
[1729694215104,0.34358961,66789.0,66788.0,0.001646]
[1729694215323,0.79411877,66789.0,66788.0,0.001646]
[1729694215569,0.81329729,66789.0,66788.0,0.001646]
[1729694216467,0.80209589,66789.0,66788.0,0.001646]
[1729694216703,0.81330094,66789.0,66788.0,0.001646]
[1729694216964,0.81330095,66789.0,66788.0,0.001646]
[1729694219539,0.81902843,66789.0,66788.0,0.001646]
[1729694221209,0.91902843,66789.0,66788.0,0.001646]
[1729694221455,0.94202843,66789.0,66788.0,0.001646]
[1729694221695,0.17170217,66781.0,66780.0,0.0776]
[1729694221926,0.67295346,66781.0,66780.0,0.0776]
[1729694222161,0.68592518,66781.0,66780.0,0.0776]
[1729694222399,0.68392518,66781.0,66780.0,0.0776]
[1729694222631,0.79590615,66781.0,66780.0,0.0776]
[1729694222894,0.66972682,66781.0,66780.0,0.0776]
[1729694223160,0.82146982,66781.0,66780.0,0.0776]
[1729694223426,0.81026476,66781.0,66780.0,0.0776]
[1729694223687,0.93344564,66781.0,66780.0,0.0776]
[1729694223926,0.8214781,66781.0,66780.0,0.0776]
[1729694224177,0.8214781,66781.0,66778.0,0.00039053]
[1729694224178,0.007,66779.0,66778.0,0.00039053]
[1729694224420,0.48610113,66779.0,66778.0,0.00039053]
[1729694224694,0.48309704,66779.0,66778.0,0.00039053]
[1729694224916,0.49903561,66779.0,66778.0,0.00039053]
[1729694225152,0.156749,66778.0,66777.0,0.00141113]
[1729694225403,0.63660694,66778.0,66777.0,0.00141113]
[1729694225643,0.64954142,66778.0,66777.0,0.00141113]
[1729694226921,0.69622836,66778.0,66777.0,0.00141113]
[1729694227141,1.00245751,66778.0,66777.0,0.00141113]
[1729694227362,1.05576458,66778.0,66777.0,0.00141113]
[1729694227577,1.10244137,66778.0,66777.0,0.00141113]
[1729694227827,1.10294189,66778.0,66777.0,0.00141113]
[1729694228267,1.12086885,66778.0,66777.0,0.00141113]
[1729694228715,0.82141173,66778.0,66777.0,0.00141113]
[1729694229144,0.97911173,66778.0,66777.0,0.00141113]
[1729694229354,1.00211173,66778.0,66777.0,0.00141113]
[1729694229581,0.007,66769.0,66766.0,0.0783]
[1729694229793,0.007,66769.0,66764.0,0.001694]
[1729694229794,0.803219,66769.0,66764.0,0.001694]
[1729694230019,0.81907657,66769.0,66764.0,0.001694]
[1729694230232,1.01677345,66769.0,66764.0,0.001694]
[1729694230438,0.85907345,66769.0,66764.0,0.001694]
[1729694230713,1.00957726,66769.0,66764.0,0.001694]
[1729694230929,0.84659876,66769.0,66764.0,0.001694]
[1729694231346,0.79992197,66769.0,66764.0,0.001694]
[1729694231583,0.62801653,66769.0,66764.0,0.001694]
[1729694231824,0.85228645,66769.0,66764.0,0.001694]
[1729694232033,0.80565107,66769.0,66764.0,0.001694]
[1729694232691,0.82926838,66769.0,66764.0,0.001694]
[1729694233845,0.82926838,66769.0,66768.0,0.079894]
[1729694234304,0.78265107,66769.0,66768.0,0.079894]
[1729694234561,0.75351676,66769.0,66768.0,0.079894]
[1729694234795,0.78258647,66769.0,66768.0,0.079894]
[1729694235283,0.005,66756.0,66755.0,0.22547745]
[1729694235782,0.02102144,66756.0,66752.0,0.151454]
[1729694236521,0.01602144,66756.0,66752.0,0.001646]
[1729694236753,0.0272021,66756.0,66752.0,0.001646]
[1729694236985,0.16582144,66756.0,66752.0,0.001646]
[1729694237709,0.01602144,66756.0,66752.0,0.001646]
[1729694237952,0.00224701,66753.0,66752.0,0.001646]
[1729694238445,0.00224701,66753.0,66752.0,0.169546]
[1729694238446,0.01526917,66753.0,66752.0,0.169546]
[1729694238820,0.01827326,66753.0,66752.0,0.169546]
[1729694239873,0.01526917,66753.0,66752.0,0.169546]
[1729694240093,0.01827326,66753.0,66752.0,0.169546]
[1729694241065,0.16507517,66753.0,66752.0,0.169546]
[1729694241282,0.01526917,66753.0,66752.0,0.169546]
[1729694241908,0.01526917,66753.0,66752.0,0.319354]
[1729694242333,0.00224701,66753.0,66752.0,0.169546]
[1729694242541,0.00224701,66753.0,66752.0,0.319354]
[1729694242746,0.00224701,66753.0,66752.0,0.169546]
[1729694242954,0.01526917,66753.0,66752.0,0.169546]
[1729694243819,0.01526917,66753.0,66752.0,0.319354]
[1729694244478,0.02644708,66753.0,66752.0,0.169546]
[1729694244697,0.01526917,66753.0,66752.0,0.169546]
[1729694245643,0.02646331,66753.0,66752.0,0.169546]
[1729694249593,0.0242163,66753.0,66752.0,0.34145144]
[1729694249835,0.0242163,66753.0,66752.0,0.49125944]
[1729694250057,0.01119414,66753.0,66752.0,0.169546]
[1729694250524,0.01419823,66753.0,66752.0,0.169546]
[1729694250792,0.16400423,66753.0,66752.0,0.169546]
[1729694251011,0.02509085,66753.0,66752.0,0.169546]
[1729694251461,0.02009085,66753.0,66752.0,0.319354]
[1729694251685,0.02009085,66753.0,66752.0,0.169546]
[1729694251903,0.00919823,66753.0,66752.0,0.169546]
[1729694252128,0.15900423,66753.0,66752.0,0.169546]
[1729694252357,0.16989685,66753.0,66752.0,0.169546]
[1729694252600,0.40582124,66753.0,66752.0,0.169546]
[1729694252823,0.45253996,66753.0,66752.0,0.169546]
[1729694253100,0.494812,66753.0,66752.0,0.077346]
[1729694253319,0.494812,66753.0,66746.0,0.0993]
[1729694253320,0.149819,66747.0,66746.0,0.0993]
[1729694253568,0.17073372,66747.0,66746.0,0.0993]
[1729694253995,0.18162634,66747.0,66746.0,0.0993]
[1729694255142,0.28773216,66747.0,66746.0,0.0993]
[1729694255598,0.32713015,66747.0,66746.0,0.0993]
[1729694255822,0.149828,66743.0,66741.0,0.0993]
[1729694256045,0.50015197,66743.0,66741.0,0.0993]
[1729694256273,0.5080405,66743.0,66741.0,0.0993]
[1729694256494,0.52941981,66743.0,66741.0,0.0993]
[1729694256722,0.53141981,66743.0,66741.0,0.0993]
[1729694256974,0.53142178,66743.0,66741.0,0.0993]
[1729694257418,0.52942178,66743.0,66741.0,0.0993]
[1729694258072,0.52942178,66743.0,66737.0,0.0789]
[1729694258377,0.52442178,66743.0,66737.0,0.0789]
[1729694258601,0.47967986,66743.0,66737.0,0.0789]
[1729694259302,0.52442707,66743.0,66737.0,0.0789]
[1729694259535,0.50847545,66743.0,66737.0,0.0789]
[1729694259760,0.50647757,66743.0,66737.0,0.0789]
[1729694259974,0.47966845,66743.0,66737.0,0.0789]
[1729694260200,0.47966845,66743.0,66733.0,0.001694]
[1729694260424,0.65357389,66743.0,66733.0,0.001694]
[1729694260639,0.70274657,66743.0,66733.0,0.001694]
[1729694261105,0.79583354,66743.0,66733.0,0.001694]
[1729694261316,0.79581056,66743.0,66733.0,0.001694]
[1729694261757,0.88533999,66743.0,66733.0,0.001694]
[1729694261984,0.87733441,66743.0,66733.0,0.001694]
[1729694262442,0.92402765,66743.0,66733.0,0.001694]
[1729694263121,1.20281186,66743.0,66733.0,0.001694]
[1729694263345,0.32875344,66734.0,66733.0,0.001694]
[1729694263578,0.73727052,66734.0,66733.0,0.001694]
[1729694263803,0.74808872,66734.0,66733.0,0.001694]
[1729694264296,0.75033694,66734.0,66733.0,0.001694]
[1729694264556,0.92323694,66734.0,66733.0,0.001694]
[1729694264797,0.96989436,66734.0,66733.0,0.001694]
[1729694265006,1.11534952,66734.0,66733.0,0.001694]
[1729694265225,0.98110486,66734.0,66733.0,0.001694]
[1729694265427,1.02710319,66734.0,66733.0,0.001694]
[1729694265642,0.76740111,66734.0,66733.0,0.001694]
[1729694267202,0.76540111,66734.0,66733.0,0.001694]
[1729694267421,0.40782747,66734.0,66733.0,0.001694]
[1729694267652,0.39666322,66734.0,66733.0,0.001694]
[1729694267872,0.32960028,66734.0,66733.0,0.001694]
[1729694268326,0.149857,66730.0,66729.0,0.001648]
[1729694268596,0.16468995,66730.0,66729.0,0.001648]
[1729694268811,0.01363203,66730.0,66729.0,0.001648]
[1729694269481,0.01062794,66730.0,66729.0,0.39901244]
[1729694269688,0.01062794,66730.0,66729.0,0.318407]
[1729694269940,0.00300409,66733.0,66729.0,0.168548]
[1729694270157,0.00300409,66733.0,66730.0,0.149856]
[1729694270395,0.01065531,66732.0,66731.0,0.149854]
[1729694270816,0.01065531,66732.0,66729.0,0.318407]
[1729694271027,0.00300409,66731.0,66729.0,0.318407]
[1729694271252,0.00300409,66731.0,66730.0,0.149857]
[1729694271493,0.00300409,66734.0,66730.0,0.299711]
[1729694271740,0.00300409,66734.0,66733.0,0.14985]
[1729694271976,0.01990592,66734.0,66730.0,0.299711]
[1729694272195,0.01990592,66734.0,66732.0,0.149852]
[1729694272408,0.01990592,66734.0,66730.0,0.149856]
[1729694272619,0.00300409,66734.0,66730.0,0.149856]
[1729694272868,0.00300409,66735.0,66731.0,0.149853]
[1729694273092,0.00300409,66735.0,66733.0,0.14985]
[1729694273323,0.04971736,66740.0,66731.0,0.299708]
[1729694273324,0.149842,66737.0,66731.0,0.29971]
[1729694273552,0.149842,66737.0,66730.0,0.149856]
[1729694273553,0.15285009,66735.0,66730.0,0.149856]
[1729694273762,0.16402629,66735.0,66730.0,0.149856]
[1729694273975,0.15285009,66735.0,66730.0,0.149856]
[1729694275265,0.15285009,66735.0,66729.0,0.168548]
[1729694275266,0.149856,66731.0,66729.0,0.168548]
[1729694275484,0.1981168,66730.0,66729.0,0.168548]
[1729694275920,0.16103974,66730.0,66729.0,0.168548]
[1729694276194,0.149857,66730.0,66729.0,0.092948]
[1729694276633,0.30036081,66730.0,66729.0,0.092948]
[1729694276845,0.31154355,66730.0,66729.0,0.001648]
[1729694277069,0.43023329,66730.0,66729.0,0.001648]
[1729694277299,0.47796428,66730.0,66729.0,0.001648]
[1729694277523,0.43323329,66730.0,66729.0,0.001648]
[1729694277736,0.44384536,66730.0,66729.0,0.001648]
[1729694281249,0.44385899,66730.0,66729.0,0.001648]
[1729694282341,0.44585899,66730.0,66729.0,0.001648]
[1729694282576,0.49058998,66730.0,66729.0,0.001648]
[1729694282783,0.48858998,66730.0,66729.0,0.001648]
[1729694283236,0.49058998,66730.0,66729.0,0.001648]
[1729694283452,0.48858998,66730.0,66729.0,0.001648]
[1729694284379,0.44385899,66730.0,66729.0,0.001648]
[1729694284822,0.44387127,66730.0,66729.0,0.001648]
[1729694285252,0.32718153,66730.0,66729.0,0.001648]
[1729694286096,0.14987,66725.0,66723.0,0.096348]
[1729694286343,0.01061207,66730.0,66724.0,0.075]
[1729694286574,0.01121179,66729.0,66727.0,0.17190544]
[1729694286787,0.01121086,66734.0,66728.0,0.1662]
[1729694287007,0.01121086,66733.0,66728.0,0.465923]
[1729694287225,0.01121086,66733.0,66728.0,0.1662]
[1729694287451,0.01121086,66732.0,66731.0,0.149853]
[1729694287673,0.01121086,66732.0,66731.0,0.247353]